bitfinex/quotes_BTCUSD_20240929
["timestamp","ask_amount","ask_price","bid_price","bid_amount"]
[1727615092941,0.05316808,65748.0,65747.0,0.138628]
[1727615093239,0.20526308,65748.0,65747.0,0.138628]
[1727615093468,0.05316808,65748.0,65747.0,0.138628]
[1727615093698,0.20526308,65748.0,65747.0,0.138628]
[1727615093964,0.05316808,65748.0,65747.0,0.138628]
[1727615094182,0.20526308,65748.0,65747.0,0.138628]
[1727615095351,0.05316808,65748.0,65747.0,0.138628]
[1727615095855,0.22910611,65748.0,65747.0,0.138628]
[1727615096072,0.20526308,65748.0,65747.0,0.138628]
[1727615096565,0.05316808,65748.0,65747.0,0.138628]
[1727615097047,0.20526308,65748.0,65747.0,0.138628]
[1727615097751,0.05316808,65748.0,65747.0,0.138628]
[1727615100340,0.04610089,65748.0,65747.0,0.290726]
[1727615100567,0.04610089,65748.0,65747.0,0.367026]
[1727615101128,0.02749895,65748.0,65747.0,0.367026]
[1727615102550,0.003656,65748.0,65747.0,0.367026]
[1727615109332,0.003656,65748.0,65747.0,0.369026]
[1727615109839,0.003656,65748.0,65747.0,0.367026]
[1727615116988,0.003656,65748.0,65747.0,0.495357]
[1727615117242,0.001654,65760.0,65759.0,0.35657]
[1727615117725,0.02020928,65760.0,65759.0,0.35657]
[1727615117943,0.001654,65760.0,65759.0,0.35657]
[1727615118180,0.001654,65760.0,65759.0,0.46469652]
[1727615119529,0.002654,65760.0,65759.0,0.48069652]
[1727615119956,0.002654,65760.0,65759.0,0.47869652]
[1727615120081,0.002654,65760.0,65759.0,0.49269652]
[1727615120288,0.002654,65760.0,65759.0,0.49469652]
[1727615122068,0.002654,65760.0,65759.0,0.48069652]
[1727615122274,0.002654,65760.0,65759.0,0.49469652]
[1727615122676,0.001654,65760.0,65759.0,0.46669652]
[1727615123268,0.002654,65760.0,65759.0,0.49469652]
[1727615123487,0.002654,65760.0,65759.0,0.48069652]
[1727615123488,0.001654,65760.0,65759.0,0.48069652]
[1727615123922,0.001654,65760.0,65759.0,0.46669652]
[1727615124893,0.002654,65760.0,65759.0,0.48069652]
[1727615125379,0.001654,65760.0,65759.0,0.48069652]
[1727615125613,0.002654,65760.0,65759.0,0.49469652]
[1727615125804,0.002654,65760.0,65759.0,0.48069652]
[1727615126069,0.002654,65760.0,65759.0,0.49469652]
[1727615126345,0.002654,65760.0,65759.0,0.48069652]
[1727615126593,0.001654,65760.0,65759.0,0.48069652]
[1727615126838,0.002654,65760.0,65759.0,0.49469652]
[1727615127817,0.002654,65760.0,65759.0,0.48969652]
[1727615128036,0.002654,65760.0,65759.0,0.48069652]
[1727615128290,0.001654,65760.0,65759.0,0.48069652]
[1727615128521,0.002654,65760.0,65759.0,0.49469652]
[1727615132259,0.002654,65760.0,65759.0,0.48769652]
[1727615132510,0.002654,65760.0,65759.0,0.49469652]
[1727615137882,0.002654,65760.0,65759.0,0.48969652]
[1727615138116,0.002654,65760.0,65759.0,0.49469652]
[1727615139165,0.002654,65760.0,65759.0,0.49441301]
[1727615147034,0.002654,65760.0,65759.0,0.38628649]
[1727615147272,0.001654,65760.0,65759.0,0.35828649]
[1727615147499,0.001654,65760.0,65759.0,0.37228649]
[1727615147719,0.002654,65760.0,65759.0,0.38628649]
[1727615148685,0.002654,65760.0,65759.0,0.38428649]
[1727615149420,0.002654,65760.0,65759.0,0.38628649]
[1727615149863,0.002654,65760.0,65759.0,0.51722802]
[1727615154416,0.002654,65760.0,65759.0,0.51522802]
[1727615154648,0.002654,65760.0,65759.0,0.51722802]
[1727615156498,0.002654,65760.0,65759.0,0.78251596]
[1727615156967,0.001654,65760.0,65759.0,1.01960017]
[1727615157193,0.001654,65760.0,65759.0,1.00642717]
[1727615157445,0.001654,65766.0,65765.0,0.356456]
[1727615157667,0.001654,65766.0,65765.0,0.46197199]
[1727615157899,0.001654,65766.0,65765.0,0.45997199]
[1727615158093,0.001654,65766.0,65765.0,0.46197199]
[1727615159303,0.001654,65766.0,65765.0,0.45997199]
[1727615159794,0.001654,65766.0,65765.0,0.47397199]
[1727615160493,0.001654,65766.0,65765.0,0.382456]
[1727615160725,0.001654,65766.0,65765.0,0.203056]
[1727615160953,0.001654,65766.0,65765.0,0.189056]
[1727615161180,0.001654,65766.0,65765.0,0.203056]
[1727615166132,0.1825367,65766.0,65765.0,0.028]
[1727615166364,0.30101339,65766.0,65765.0,0.028]
[1727615166827,0.30101339,65766.0,65765.0,0.014]
[1727615167084,0.14895939,65766.0,65765.0,0.014]
[1727615167323,0.14895939,65766.0,65765.0,0.037]
[1727615167806,0.14895939,65766.0,65764.0,0.023]
[1727615168036,0.14895939,65766.0,65765.0,0.037]
[1727615168267,0.14895939,65766.0,65765.0,0.189056]
[1727615169002,0.14895939,65766.0,65765.0,0.203056]
[1727615169465,0.14895939,65766.0,65765.0,0.175056]
[1727615169752,0.14895939,65766.0,65765.0,0.189056]
[1727615170002,0.14895939,65766.0,65765.0,0.203056]
[1727615170192,0.14895939,65766.0,65765.0,0.189056]
[1727615171158,0.14895939,65766.0,65765.0,0.203056]
[1727615172740,0.05335939,65766.0,65765.0,0.203056]
[1727615175445,0.05335939,65766.0,65765.0,0.051]
[1727615176847,0.20541339,65766.0,65765.0,0.051]
[1727615177081,0.05335939,65766.0,65765.0,0.203056]
[1727615182253,0.05335939,65766.0,65765.0,0.297156]
[1727615182496,0.0304827,65766.0,65765.0,0.3785687]
[1727615183698,0.0304827,65766.0,65765.0,0.297156]
[1727615183977,0.0304827,65766.0,65765.0,0.3001967]
[1727615185166,0.001654,65766.0,65765.0,0.3001967]
[1727615185398,0.001654,65766.0,65765.0,0.3828967]
[1727615185622,0.001654,65766.0,65765.0,0.379856]
[1727615185853,0.001654,65766.0,65765.0,0.4787487]
[1727615186667,0.001654,65766.0,65765.0,0.4837487]
[1727615187942,0.001654,65766.0,65765.0,0.49473578]
[1727615188148,0.001654,65766.0,65765.0,0.382856]
[1727615189555,0.001654,65766.0,65765.0,0.387856]
[1727615190418,0.001654,65766.0,65765.0,0.382856]
[1727615194311,0.001654,65766.0,65765.0,0.384856]
[1727615194971,0.001654,65766.0,65765.0,0.382856]
[1727615198832,0.001654,65766.0,65765.0,0.384856]
[1727615199545,0.001654,65766.0,65765.0,0.382856]
[1727615200204,0.001654,65766.0,65765.0,0.384856]
[1727615201670,0.001654,65766.0,65765.0,0.382856]
[1727615203309,0.001654,65766.0,65765.0,0.384856]
[1727615204263,0.001654,65766.0,65765.0,0.028]
[1727615204264,0.0304827,65766.0,65765.0,0.028]
[1727615204744,0.2872718,65766.0,65765.0,0.028]
[1727615204983,0.2872718,65766.0,65760.0,0.000827]
[1727615204984,0.304127,65762.0,65760.0,0.000827]
[1727615205226,0.25981394,65761.0,65760.0,0.000827]
[1727615205472,0.38258616,65761.0,65760.0,0.000827]
[1727615206640,0.38258616,65761.0,65760.0,0.023827]
[1727615207861,0.38258616,65761.0,65760.0,0.035827]
[1727615208101,0.38258616,65761.0,65760.0,0.023827]
[1727615208337,0.38258616,65761.0,65760.0,0.033827]
[1727615208561,0.38258616,65761.0,65760.0,0.043827]
[1727615212256,0.20428616,65761.0,65760.0,0.043827]
[1727615216620,0.05222116,65761.0,65760.0,0.043827]
[1727615217304,0.05222116,65761.0,65760.0,0.195895]
[1727615218115,0.05222116,65761.0,65760.0,0.043827]
[1727615218358,0.05222116,65761.0,65760.0,0.195895]
[1727615218585,0.05222116,65761.0,65760.0,0.043827]
[1727615218808,0.05222116,65761.0,65760.0,0.195895]
[1727615219247,0.05222116,65761.0,65760.0,0.043827]
[1727615219479,0.05222116,65761.0,65760.0,0.195895]
[1727615219685,0.05222116,65761.0,65760.0,0.043827]
[1727615220579,0.02287222,65761.0,65760.0,0.3575901]
[1727615220817,0.001654,65766.0,65760.0,0.140227]
[1727615221050,0.05188448,65765.0,65764.0,0.175058]
[1727615221507,0.05188448,65765.0,65764.0,0.023]
[1727615221725,0.05188448,65765.0,65762.0,0.537587]
[1727615221726,0.05188448,65765.0,65763.0,0.023]
[1727615222444,0.05188448,65765.0,65764.0,0.028]
[1727615222673,0.05188448,65765.0,65764.0,0.023]
[1727615222888,0.05188448,65765.0,65763.0,0.023]
[1727615223121,0.05188448,65765.0,65763.0,0.028]
[1727615223337,0.05188448,65765.0,65762.0,0.023]
[1727615224210,0.05188448,65765.0,65760.0,0.023827]
[1727615224211,0.35600148,65765.0,65760.0,0.023827]
[1727615224460,0.152065,65761.0,65760.0,0.023827]
[1727615224667,0.2042328,65761.0,65760.0,0.023827]
[1727615225612,0.2042328,65761.0,65760.0,0.043827]
[1727615226119,0.0521678,65761.0,65760.0,0.043827]
[1727615226348,0.2042328,65761.0,65760.0,0.043827]
[1727615227731,0.0521678,65761.0,65760.0,0.043827]
[1727615228217,0.2042328,65761.0,65760.0,0.043827]
[1727615228437,0.0538218,65761.0,65760.0,0.043827]
[1727615228893,0.2058868,65761.0,65760.0,0.043827]
[1727615229137,0.0538218,65761.0,65760.0,0.043827]
[1727615230790,0.0538218,65761.0,65760.0,0.195895]
[1727615231048,0.02441505,65761.0,65760.0,0.19893609]
[1727615231303,0.02441505,65761.0,65760.0,0.37893595]
[1727615231551,0.02441505,65761.0,65760.0,0.375895]
[1727615231552,0.001654,65761.0,65760.0,0.375895]
[1727615231811,0.001654,65761.0,65760.0,0.4743962]
[1727615232057,0.001654,65761.0,65760.0,0.4543962]
[1727615232302,0.001654,65761.0,65760.0,0.4643962]
[1727615232768,0.001654,65761.0,65760.0,0.4543962]
[1727615233254,0.001654,65761.0,65760.0,0.4683962]
[1727615233478,0.001654,65761.0,65760.0,0.4643962]
[1727615233724,0.001654,65761.0,65760.0,0.4783962]
[1727615233954,0.001654,65761.0,65760.0,0.4683962]
[1727615234234,0.001654,65761.0,65760.0,0.4823962]
[1727615234707,0.001654,65761.0,65760.0,0.4683962]
[1727615234948,0.001654,65761.0,65760.0,0.4823962]
[1727615235450,0.001654,65761.0,65760.0,0.4683962]
[1727615235661,0.001654,65761.0,65760.0,0.4823962]
[1727615236136,0.001654,65761.0,65760.0,0.4683962]
[1727615236363,0.001654,65761.0,65760.0,0.4823962]
[1727615239873,0.001654,65761.0,65760.0,0.383895]
[1727615251155,0.001654,65761.0,65760.0,0.488895]
[1727615251968,0.001654,65761.0,65760.0,0.474895]
[1727615252546,0.001654,65761.0,65760.0,0.488895]
[1727615252773,0.001654,65761.0,65760.0,0.476895]
[1727615253007,0.001654,65761.0,65760.0,0.60600653]
[1727615253252,0.001654,65761.0,65760.0,0.62000653]
[1727615253473,0.001654,65761.0,65760.0,0.59200653]
[1727615253928,0.001654,65761.0,65760.0,1.04342015]
[1727615254155,0.001654,65761.0,65760.0,1.04842015]
[1727615254391,0.001654,65761.0,65760.0,0.81688839]
[1727615254605,0.001654,65761.0,65760.0,0.97985588]
[1727615255033,0.001654,65761.0,65760.0,1.04823143]
[1727615255272,0.001654,65761.0,65760.0,0.85064728]
[1727615255508,0.001654,65761.0,65760.0,0.84184521]
[1727615255740,0.001654,65761.0,65760.0,0.82784521]
[1727615256005,0.001654,65761.0,65760.0,0.78227173]
[1727615256254,0.001654,65761.0,65760.0,0.79627173]
[1727615256492,0.001654,65761.0,65760.0,0.82783623]
[1727615256724,0.001654,65761.0,65760.0,0.84183623]
[1727615256959,0.001654,65761.0,65760.0,0.82783623]
[1727615257202,0.001654,65761.0,65760.0,0.84183623]
[1727615257876,0.001654,65761.0,65760.0,0.78227173]
[1727615258106,0.001654,65761.0,65760.0,0.79627173]
[1727615258861,0.001654,65761.0,65760.0,0.76827173]
[1727615259085,0.001654,65761.0,65760.0,0.78227173]
[1727615259346,0.001654,65761.0,65760.0,0.76827173]
[1727615259841,0.001654,65761.0,65760.0,0.78227173]
[1727615260512,0.001654,65761.0,65760.0,0.79627173]
[1727615260970,0.001654,65761.0,65760.0,0.78227173]
[1727615261192,0.001654,65761.0,65760.0,0.79627173]
[1727615261637,0.001654,65761.0,65760.0,0.78227173]
[1727615262085,0.001654,65761.0,65760.0,0.79627173]
[1727615262999,0.001654,65761.0,65760.0,0.79427173]
[1727615263212,0.001654,65761.0,65760.0,0.79627173]
[1727615263432,0.001654,65761.0,65760.0,0.78227173]
[1727615263667,0.001654,65761.0,65760.0,0.79627173]
[1727615264113,0.001654,65761.0,65760.0,0.79427173]
[1727615264330,0.001654,65761.0,65760.0,0.79627173]
[1727615280640,0.001654,65761.0,65760.0,0.79427173]
[1727615280894,0.001654,65761.0,65760.0,0.79627173]
[1727615283413,0.001654,65761.0,65760.0,0.84182804]
[1727615284395,0.001654,65761.0,65760.0,1.04544099]
[1727615284859,0.001654,65761.0,65760.0,1.13655362]
[1727615285095,0.001654,65761.0,65760.0,1.13643854]
[1727615285354,0.001654,65766.0,65765.0,0.192056]
[1727615285593,0.001654,65766.0,65765.0,0.78018951]
[1727615285836,0.001654,65766.0,65765.0,1.08510882]
[1727615286068,0.001654,65766.0,65765.0,0.97119867]
[1727615286558,0.001654,65766.0,65765.0,1.0623145]
[1727615286811,0.001654,65766.0,65765.0,1.05354127]
[1727615287283,0.001654,65766.0,65765.0,1.06754127]
[1727615287738,0.001654,65766.0,65765.0,0.97119867]
[1727615287990,0.001654,65766.0,65765.0,1.0763145]
[1727615288247,0.001654,65766.0,65765.0,1.090316]
[1727615288507,0.001654,65769.0,65768.0,0.436649]
[1727615288747,0.001654,65769.0,65768.0,0.84425133]
[1727615288996,0.001654,65769.0,65768.0,1.03788221]
[1727615289271,0.001654,65769.0,65768.0,0.77590772]
[1727615289521,0.001654,65769.0,65768.0,0.84425245]
[1727615289765,0.001654,65769.0,65768.0,1.03786865]
[1727615289997,0.001654,65769.0,65768.0,0.84425245]
[1727615290231,0.001654,65769.0,65768.0,0.78990772]
[1727615290477,0.001654,65769.0,65768.0,1.0888939]
[1727615290705,0.001654,65769.0,65768.0,1.02054917]
[1727615290949,0.001654,65769.0,65768.0,1.08889589]
[1727615291186,0.001654,65769.0,65768.0,1.10466595]
[1727615291435,0.001654,65769.0,65768.0,1.03631923]
[1727615291690,0.000827,65798.0,65782.0,0.321117]
[1727615291691,0.31930658,65792.0,65782.0,0.321117]
[1727615291957,0.22690658,65792.0,65782.0,0.67932584]
[1727615292233,0.0230178,65783.0,65782.0,0.68432584]
[1727615292498,0.22690658,65792.0,65783.0,0.269014]
[1727615292757,0.22690658,65792.0,65783.0,0.42734151]
[1727615293056,0.22690658,65792.0,65783.0,0.56783856]
[1727615293307,0.22690658,65792.0,65783.0,0.61337349]
[1727615293799,0.22690658,65792.0,65783.0,0.66437349]
[1727615294054,0.22690658,65792.0,65783.0,0.70923856]
[1727615294305,0.22690658,65792.0,65783.0,0.75793856]
[1727615294567,0.22690658,65792.0,65783.0,0.97004475]
[1727615294773,0.22690658,65792.0,65791.0,0.439596]
[1727615295005,0.22690658,65792.0,65791.0,0.68780484]
[1727615295284,0.000827,65798.0,65797.0,0.153982]
[1727615295529,0.000827,65798.0,65797.0,0.15702124]
[1727615295777,0.000827,65798.0,65797.0,0.15502124]
[1727615296504,0.000827,65798.0,65797.0,0.15702124]
[1727615296730,0.000827,65798.0,65797.0,0.28741636]
[1727615297026,0.000827,65798.0,65797.0,0.30141636]
[1727615297286,0.000827,65798.0,65797.0,0.31541636]
[1727615298543,0.000827,65798.0,65797.0,0.32041594]
[1727615298765,0.000827,65798.0,65797.0,0.41277712]
[1727615299023,0.000827,65798.0,65797.0,0.56806506]
[1727615299261,0.000827,65798.0,65797.0,0.64326506]
[1727615299707,0.000827,65798.0,65797.0,0.62926506]
[1727615300187,0.000827,65798.0,65797.0,0.62726506]
[1727615300679,0.000827,65798.0,65797.0,0.63426506]
[1727615300935,0.000827,65798.0,65797.0,0.63726506]
[1727615301166,0.000827,65798.0,65797.0,0.65126506]
[1727615301385,0.000827,65798.0,65797.0,0.65326506]
[1727615302507,0.000827,65798.0,65797.0,0.65126506]
[1727615302727,0.000827,65798.0,65797.0,0.65326506]
[1727615302940,0.000827,65798.0,65797.0,0.65126506]
[1727615303212,0.000827,65798.0,65797.0,0.65326506]
[1727615306120,0.000827,65798.0,65797.0,0.75126506]
[1727615307246,0.000827,65798.0,65797.0,0.75326506]
[1727615308180,0.000828,65801.0,65800.0,0.168975]
[1727615308430,0.000828,65801.0,65800.0,0.59660135]
[1727615308667,0.000828,65801.0,65800.0,0.59356294]
[1727615309394,0.000828,65801.0,65800.0,0.62405294]
[1727615310135,0.000828,65801.0,65800.0,0.62205294]
[1727615310358,0.000828,65801.0,65800.0,0.73797384]
[1727615310577,0.000828,65801.0,65800.0,0.75197384]
[1727615311686,0.000828,65801.0,65800.0,0.73548384]
[1727615312594,0.000828,65801.0,65800.0,0.70948384]
[1727615312813,0.000828,65801.0,65800.0,0.72348384]
[1727615313034,0.000828,65801.0,65800.0,0.73748384]
[1727615313507,0.000828,65801.0,65800.0,0.72348384]
[1727615313732,0.000828,65801.0,65800.0,0.73748384]
[1727615314175,0.000828,65801.0,65800.0,0.72348384]
[1727615314619,0.000828,65801.0,65800.0,0.73748384]
[1727615314865,0.000828,65801.0,65800.0,0.70748384]
[1727615315318,0.000828,65801.0,65800.0,0.72348384]
[1727615315549,0.000828,65801.0,65800.0,0.72148384]
[1727615315782,0.000828,65801.0,65800.0,0.72348384]
[1727615316763,0.000828,65801.0,65800.0,0.73548384]
[1727615316995,0.000828,65801.0,65800.0,0.73748384]
[1727615319970,0.000828,65801.0,65800.0,0.73548384]
[1727615320202,0.000828,65801.0,65800.0,0.73748384]
[1727615324497,0.000828,65801.0,65800.0,0.73548384]
[1727615324704,0.000828,65801.0,65800.0,0.73748384]
[1727615325392,0.000828,65801.0,65800.0,0.73548384]
[1727615326089,0.000828,65801.0,65800.0,0.45026294]
[1727615327700,0.000828,65801.0,65800.0,0.45926294]
[1727615327951,0.000828,65801.0,65800.0,0.44526294]
[1727615328193,0.000828,65801.0,65800.0,0.45926294]
[1727615328666,0.000828,65801.0,65800.0,0.279975]
[1727615328903,0.000828,65801.0,65800.0,0.293975]
[1727615329394,0.000828,65801.0,65800.0,0.265975]
[1727615329395,0.177628,65801.0,65800.0,0.265975]
[1727615329618,0.177628,65801.0,65800.0,0.270975]
[1727615330066,0.177628,65801.0,65800.0,0.279975]
[1727615330314,0.177628,65801.0,65800.0,0.284975]
[1727615330552,0.177628,65801.0,65800.0,0.270975]
[1727615330789,0.177628,65801.0,65800.0,0.307975]
[1727615331022,0.177628,65801.0,65800.0,0.293975]
[1727615331265,0.177628,65801.0,65800.0,0.4023264]
[1727615331494,0.177628,65801.0,65800.0,0.4163264]
[1727615331721,0.177628,65801.0,65800.0,0.4303264]
[1727615332168,0.177628,65801.0,65800.0,0.4443264]
[1727615332415,0.177628,65801.0,65800.0,0.321975]
[1727615332871,0.000828,65801.0,65800.0,0.321975]
[1727615333566,0.000828,65801.0,65800.0,0.323975]
[1727615334013,0.000828,65801.0,65800.0,0.321975]
[1727615335632,0.000828,65801.0,65800.0,0.4457264]
[1727615335859,0.000828,65801.0,65800.0,0.321975]
[1727615337490,0.000828,65801.0,65800.0,0.323975]
[1727615337745,0.000828,65801.0,65800.0,0.321975]
[1727615342633,0.000828,65801.0,65800.0,0.323975]
[1727615342859,0.000828,65801.0,65800.0,0.4477264]
[1727615343099,0.000828,65801.0,65800.0,0.4457264]
[1727615343331,0.000828,65801.0,65800.0,0.4477264]
[1727615345301,0.000828,65801.0,65800.0,0.4457264]
[1727615345541,0.000828,65801.0,65800.0,0.4477264]
[1727615345789,0.000828,65801.0,65800.0,0.61301434]
[1727615346484,0.000828,65801.0,65800.0,0.65850141]
[1727615346945,0.000828,65801.0,65800.0,0.64450141]
[1727615347198,0.000828,65801.0,65800.0,0.65850141]
[1727615347421,0.000828,65801.0,65800.0,0.58501434]
[1727615347645,0.000828,65801.0,65800.0,0.63058069]
[1727615347873,0.000828,65801.0,65800.0,0.64458069]
[1727615348799,0.000828,65801.0,65800.0,0.59901434]
[1727615350580,0.000828,65801.0,65800.0,0.64458069]
[1727615351021,0.000828,65801.0,65800.0,0.72508069]
[1727615352123,0.000828,65801.0,65800.0,0.7250854]
[1727615353256,0.000828,65801.0,65800.0,0.7090854]
[1727615353501,0.000828,65801.0,65800.0,0.7110854]
[1727615353709,0.000828,65801.0,65800.0,0.7250854]
[1727615354164,0.000828,65801.0,65800.0,0.73404569]
[1727615354395,0.000828,65801.0,65800.0,0.72204569]
[1727615354625,0.000828,65801.0,65800.0,0.72004569]
[1727615354873,0.000828,65801.0,65800.0,0.73404569]
[1727615355105,0.000828,65801.0,65800.0,0.72204569]
[1727615355331,0.000828,65801.0,65800.0,0.73404569]
[1727615356002,0.000828,65801.0,65800.0,0.72204569]
[1727615356709,0.000828,65801.0,65800.0,0.73604569]
[1727615356942,0.000828,65801.0,65800.0,0.72205014]
[1727615357173,0.000828,65801.0,65800.0,0.70805014]
[1727615357429,0.000828,65801.0,65800.0,0.72005014]
[1727615357644,0.000828,65801.0,65800.0,0.72205014]
[1727615357858,0.000828,65801.0,65800.0,0.73605014]
[1727615358079,0.000828,65801.0,65800.0,0.72205014]
[1727615358512,0.000828,65801.0,65800.0,0.73605014]
[1727615358729,0.000828,65801.0,65800.0,0.73605362]
[1727615359378,0.000828,65801.0,65800.0,0.72205362]
[1727615359849,0.000828,65801.0,65800.0,0.73605362]
[1727615360078,0.000828,65801.0,65800.0,0.73405362]
[1727615360739,0.000828,65801.0,65800.0,0.73605362]
[1727615361224,0.000828,65801.0,65800.0,0.69047463]
[1727615362638,0.000828,65801.0,65800.0,0.75885258]
[1727615362862,0.000828,65801.0,65800.0,1.0633818]
[1727615363096,0.000828,65801.0,65800.0,1.08617446]
[1727615363323,0.000828,65801.0,65800.0,0.99500385]
[1727615363541,0.000828,65801.0,65800.0,1.04983969]
[1727615363758,0.000828,65801.0,65800.0,1.03583969]
[1727615363993,0.000828,65801.0,65800.0,1.02183969]
[1727615364222,0.000828,65801.0,65800.0,1.04983969]
[1727615364433,0.000828,65801.0,65800.0,1.03583969]
[1727615364652,0.000828,65801.0,65800.0,1.04983969]
[1727615365599,0.000828,65801.0,65800.0,1.03583969]
[1727615365820,0.000828,65801.0,65800.0,1.04983969]
[1727615366286,0.000828,65801.0,65800.0,1.0489573]
[1727615371085,0.000828,65801.0,65800.0,1.04895292]
[1727615372021,0.000828,65801.0,65800.0,0.99411708]
[1727615372244,0.000828,65801.0,65800.0,1.04892]
[1727615372467,0.000828,65801.0,65800.0,0.99411708]
[1727615374261,0.000828,65801.0,65800.0,1.04892442]
[1727615380642,0.000828,65801.0,65800.0,1.04909205]
[1727615385105,0.000828,65801.0,65800.0,1.05511598]
[1727615387592,0.000828,65801.0,65800.0,1.05311598]
[1727615387812,0.000828,65801.0,65800.0,1.05511598]
[1727615388039,0.000828,65801.0,65800.0,1.04111598]
[1727615388288,0.000828,65801.0,65800.0,1.05511598]
[1727615388499,0.000828,65801.0,65800.0,1.04111598]
[1727615388913,0.000828,65801.0,65800.0,1.05511598]
[1727615389125,0.000828,65801.0,65800.0,1.05311598]
[1727615389349,0.000828,65801.0,65800.0,1.04111598]
[1727615389562,0.000828,65801.0,65800.0,1.02511598]
[1727615389790,0.000828,65801.0,65800.0,1.05511598]
[1727615396681,0.000828,65801.0,65800.0,1.05311598]
[1727615397120,0.000828,65801.0,65800.0,1.05511598]
[1727615397786,0.000828,65801.0,65800.0,1.05311598]
[1727615398435,0.000828,65801.0,65800.0,1.05511598]
[1727615398663,0.000828,65801.0,65800.0,1.05311598]
[1727615399323,0.000828,65801.0,65800.0,1.05511598]
[1727615401311,0.000828,65801.0,65800.0,1.05311598]
[1727615401556,0.000828,65801.0,65800.0,1.05511598]
[1727615402773,0.000828,65801.0,65800.0,1.05421359]
[1727615404496,0.000828,65801.0,65800.0,1.19109093]
[1727615407586,0.000828,65801.0,65800.0,1.05421359]
[1727615409203,0.000828,65801.0,65800.0,1.05221359]
[1727615410072,0.000828,65801.0,65800.0,1.05421359]
[1727615410505,0.000828,65801.0,65800.0,1.05221359]
[1727615410923,0.000828,65801.0,65800.0,1.05421359]
[1727615411066,0.000828,65801.0,65800.0,1.05221359]
[1727615411497,0.000828,65801.0,65800.0,1.05421359]
[1727615413259,0.000828,65801.0,65800.0,1.04021359]
[1727615414353,0.000828,65801.0,65800.0,1.02621359]
[1727615414572,0.000828,65801.0,65800.0,1.04021359]
[1727615414788,0.000828,65801.0,65800.0,1.05421359]
[1727615416573,0.000828,65801.0,65800.0,1.05422021]
[1727615416814,0.000828,65801.0,65800.0,1.06836148]
[1727615417028,0.000828,65801.0,65800.0,1.07036148]
[1727615417895,0.000828,65801.0,65800.0,1.05422021]
[1727615419491,0.000828,65801.0,65800.0,1.05222021]
[1727615419712,0.000828,65801.0,65800.0,1.05422021]
[1727615420991,0.000828,65801.0,65800.0,1.07036199]
[1727615422122,0.000828,65808.0,65807.0,0.168959]
[1727615422356,0.000828,65808.0,65807.0,0.87462338]
[1727615422586,0.000828,65808.0,65807.0,1.06232905]
[1727615422810,0.000828,65808.0,65807.0,0.92536188]
[1727615423257,0.000828,65808.0,65807.0,1.0622496]
[1727615423509,0.000828,65808.0,65807.0,1.0762496]
[1727615423944,0.000828,65808.0,65807.0,1.0902496]
[1727615424401,0.000828,65808.0,65807.0,1.1042496]
[1727615424839,0.000828,65808.0,65807.0,1.0762496]
[1727615425067,0.000828,65808.0,65807.0,1.0902496]
[1727615425309,0.000828,65808.0,65807.0,0.93936188]
[1727615425802,0.000828,65808.0,65807.0,0.92536188]
[1727615426030,0.000828,65808.0,65807.0,0.93936188]
[1727615426470,0.000828,65808.0,65807.0,0.94150366]
[1727615426690,0.000828,65808.0,65807.0,0.95550366]
[1727615426902,0.000828,65808.0,65807.0,0.96950366]
[1727615427138,0.000828,65808.0,65807.0,0.95550366]
[1727615427580,0.000828,65808.0,65807.0,0.96950366]
[1727615428673,0.000828,65808.0,65807.0,0.98008839]
[1727615433480,0.000828,65808.0,65807.0,0.92631139]
[1727615435928,0.000828,65808.0,65807.0,0.98001134]
[1727615436374,0.000828,65809.0,65808.0,0.466857]
[1727615436593,0.000828,65809.0,65808.0,1.11162923]
[1727615437267,0.000828,65809.0,65808.0,0.97490155]
[1727615437479,0.000828,65809.0,65808.0,1.00290155]
[1727615437931,0.000828,65814.0,65813.0,0.166945]
[1727615438159,0.000828,65814.0,65813.0,0.77682036]
[1727615438384,0.000828,65814.0,65813.0,0.79678213]
[1727615439578,0.000828,65814.0,65813.0,0.79878213]
[1727615439796,0.000828,65814.0,65813.0,0.81288172]
[1727615440005,0.000828,65814.0,65813.0,0.86017042]
[1727615440238,0.000828,65814.0,65813.0,0.88817042]
[1727615440692,0.000828,65814.0,65813.0,0.88617042]
[1727615441363,0.000828,65814.0,65813.0,0.83447047]
[1727615441565,0.000828,65814.0,65813.0,0.91167047]
[1727615443213,0.000828,65814.0,65813.0,0.96530428]
[1727615443452,0.001654,65827.0,65825.0,0.181917]
[1727615443676,0.001654,65827.0,65825.0,0.4502429]
[1727615443896,0.001654,65827.0,65825.0,0.44720494]
[1727615444760,0.001654,65827.0,65825.0,0.46120494]
[1727615445225,0.001654,65827.0,65825.0,0.46520494]
[1727615445443,0.001654,65827.0,65825.0,0.59895634]
[1727615445888,0.001654,65827.0,65825.0,0.58495634]
[1727615446379,0.001654,65827.0,65825.0,0.59895634]
[1727615448375,0.001654,65827.0,65825.0,0.60993226]
[1727615450832,0.001654,65827.0,65825.0,0.60793226]
[1727615451326,0.001654,65827.0,65825.0,0.60993226]
[1727615452533,0.001654,65827.0,65825.0,0.59593226]
[1727615452786,0.001654,65827.0,65825.0,0.58193226]
[1727615453032,0.001654,65827.0,65825.0,0.59593226]
[1727615453521,0.001654,65827.0,65825.0,0.58193226]
[1727615454038,0.001654,65827.0,65825.0,0.60993226]
[1727615454263,0.001654,65827.0,65825.0,0.59593226]
[1727615454502,0.001654,65827.0,65825.0,0.60993226]
[1727615454958,0.001654,65827.0,65825.0,0.59593226]
[1727615455168,0.001654,65827.0,65825.0,0.60993226]
[1727615455416,0.001654,65827.0,65825.0,0.59593226]
[1727615455872,0.001654,65827.0,65825.0,0.58193226]
[1727615456100,0.001654,65827.0,65825.0,0.59393226]
[1727615456329,0.099056,65826.0,65825.0,0.45618086]
[1727615456554,0.099056,65826.0,65825.0,0.44218086]
[1727615456764,0.099056,65826.0,65825.0,0.44418086]
[1727615456981,0.099056,65826.0,65825.0,0.45318086]
[1727615457206,0.099056,65826.0,65825.0,0.45118086]
[1727615457428,0.099056,65826.0,65825.0,0.57445445]
[1727615457655,0.099056,65826.0,65825.0,0.59745445]
[1727615458092,0.099056,65826.0,65825.0,0.61145445]
[1727615458340,0.001656,65826.0,65825.0,0.61145445]